bitfinex-derivatives/quotes_BNBF0:USTF0_20250220
["timestamp","ask_amount","ask_price","bid_price","bid_amount"]
[1740092835603,2.1504907,656.22,655.69,0.30502219]
[1740092835604,2.91559308,656.16,655.69,0.30502219]
[1740092835802,2.91559308,656.15,655.69,0.30502219]
[1740092836102,2.91559308,656.14,655.69,0.30502219]
[1740092836308,2.91559308,656.13,655.69,0.30502219]
[1740092836602,2.91619805,656.12,655.69,0.30502219]
[1740092836802,1.342,656.43,655.69,0.30502219]
[1740092837100,2.91619544,656.42,655.69,0.30502219]
[1740092837300,2.91619544,656.41,655.69,0.30502219]
[1740092837501,2.91619544,656.4,655.69,0.30502219]
[1740092837701,2.91619544,656.39,655.69,0.30502219]
[1740092837903,2.91619544,656.38,655.69,0.30502219]
[1740092838103,2.91619544,656.37,655.69,0.30502219]
[1740092838300,2.91619544,656.36,655.69,0.30502219]
[1740092838504,2.15107569,656.42,655.69,0.30502219]
[1740092838505,2.91619544,656.35,655.69,0.30502219]
[1740092838703,2.91619544,656.34,655.69,0.30502219]
[1740092838905,2.91619544,656.33,655.69,0.30502219]
[1740092839101,2.91619544,656.32,655.69,0.30502219]
[1740092839306,2.91619544,656.31,655.69,0.30502219]
[1740092839507,2.91619544,656.3,655.69,0.30502219]
[1740092839806,2.91619544,656.29,655.69,0.30502219]
[1740092840006,2.91619544,656.28,655.69,0.30502219]
[1740092840204,2.91619544,656.27,655.69,0.30502219]
[1740092840400,2.91619544,656.26,655.69,0.30502219]
[1740092840602,2.91619544,656.25,655.69,0.30502219]
[1740092840808,2.91619544,656.24,655.69,0.30502219]
[1740092841004,2.91619544,656.23,655.69,0.30502219]
[1740092841304,2.91619544,656.22,655.69,0.30502219]
[1740092841505,2.91619544,656.21,655.69,0.30502219]
[1740092841699,5.06727113,656.2,655.69,0.30502219]
[1740092841905,2.91619544,656.19,655.69,0.30502219]
[1740092842101,2.91619544,656.18,655.69,0.30502219]
[1740092842299,2.91619544,656.17,655.69,0.30502219]
[1740092842606,2.91619544,656.16,655.69,0.30502219]
[1740092842803,2.91619544,656.15,655.69,0.30502219]
[1740092843000,2.91619544,656.14,655.69,0.30502219]
[1740092843203,2.91619544,656.13,655.69,0.30502219]
[1740092843406,2.91619544,656.12,655.69,0.30502219]
[1740092843606,2.91619544,656.11,655.69,0.30502219]
[1740092843908,2.91619544,656.1,655.69,0.30502219]
[1740092844208,2.15107569,656.14,655.69,0.30502219]
[1740092844400,2.91828595,656.13,655.69,0.30502219]
[1740092844605,2.91828595,656.12,655.69,0.30502219]
[1740092844800,2.91828595,656.11,655.69,0.30502219]
[1740092845006,2.15107569,656.12,655.69,0.30502219]
[1740092845804,1.748,656.36,655.69,0.30502219]
[1740092851713,2.91836919,656.35,655.69,0.30502219]
[1740092851913,2.91836919,656.34,655.69,0.30502219]
[1740092852112,2.91836919,656.33,655.69,0.30502219]
[1740092852312,2.91836919,656.32,655.69,0.30502219]
[1740092852509,2.91836919,656.31,655.69,0.30502219]
[1740092852706,2.91836919,656.3,655.69,0.30502219]
[1740092852908,2.91836919,656.29,655.69,0.30502219]
[1740092853213,2.91836919,656.28,655.69,0.30502219]
[1740092853415,2.91836919,656.27,655.69,0.30502219]
[1740092853609,2.1527018,656.32,655.69,0.30502219]
[1740092853610,2.91836919,656.26,655.69,0.30502219]
[1740092853912,5.07107099,656.25,655.69,0.30502219]
[1740092854107,2.91836919,656.24,655.69,0.30502219]
[1740092854306,2.91836919,656.23,655.69,0.30502219]
[1740092854511,2.91836919,656.22,655.69,0.30502219]
[1740092854711,2.1527018,656.25,655.69,0.30502219]
[1740092854911,2.91794248,656.24,655.69,0.30502219]
[1740092855112,2.1527018,656.25,655.69,0.30502219]
[1740092855113,2.91794248,656.23,655.69,0.30502219]
[1740092855308,2.91794248,656.22,655.69,0.30502219]
[1740092855615,2.1527018,656.25,655.69,0.30502219]
[1740092855616,2.91794248,656.21,655.69,0.30502219]
[1740092855915,5.07064428,656.2,655.69,0.30502219]
[1740092856208,2.1527018,656.2,655.69,0.30502219]
[1740092857114,2.1527018,656.19,655.69,0.30502219]
[1740092858818,2.1527018,656.18,655.69,0.30502219]
[1740092859012,2.91670159,656.17,655.69,0.30502219]
[1740092859210,2.91670159,656.16,655.69,0.30502219]
[1740092859411,2.91670159,656.15,655.69,0.30502219]
[1740092859610,2.91670159,656.14,655.69,0.30502219]
[1740092859815,2.91670159,656.13,655.69,0.30502219]
[1740092860016,2.91670159,656.12,655.69,0.30502219]
[1740092860316,2.91670159,656.11,655.69,0.30502219]
[1740092860518,2.91670159,656.1,655.69,0.30502219]
[1740092860712,2.91670159,656.09,655.69,0.30502219]
[1740092860916,2.91670159,656.08,655.69,0.30502219]
[1740092861116,2.91670159,656.07,655.69,0.30502219]
[1740092861418,2.91670159,656.06,655.69,0.30502219]
[1740092861618,2.91670159,656.05,655.69,0.30502219]
[1740092861814,2.91670159,656.04,655.69,0.30502219]
[1740092862012,2.91670159,656.03,655.69,0.30502219]
[1740092862218,2.91670159,656.02,655.69,0.30502219]
[1740092862515,2.91670159,656.01,655.69,0.30502219]
[1740092862722,2.91670159,656.0,655.69,0.30502219]
[1740092862922,2.91670159,655.99,655.69,0.30502219]
[1740092863220,2.91670159,655.98,655.69,0.30502219]
[1740092863422,2.91670159,655.97,655.69,0.30502219]
[1740092863624,2.91670159,655.96,655.69,0.30502219]
[1740092863821,2.91670159,655.95,655.69,0.30502219]
[1740092864018,2.91670159,655.94,655.69,0.30502219]
[1740092864322,2.91670159,655.93,655.69,0.30502219]
[1740092864521,2.91670159,655.92,655.69,0.30502219]
[1740092864721,2.91670159,655.91,655.69,0.30502219]
[1740092864922,2.91670159,655.9,655.69,0.30502219]
[1740092865126,2.91670159,655.89,655.69,0.30502219]
[1740092865317,2.1527018,655.95,655.69,0.30502219]
[1740092865318,2.91670159,655.88,655.69,0.30502219]
[1740092865522,2.1527018,655.95,655.69,0.30502219]
[1740092865718,2.91327776,655.94,655.69,0.30502219]
[1740092865921,2.91327776,655.93,655.69,0.30502219]
[1740092866124,2.91327776,655.92,655.69,0.30502219]
[1740092866430,2.91327776,655.91,655.69,0.30502219]
[1740092866627,2.91327776,655.9,655.69,0.30502219]
[1740092866828,2.91327776,655.89,655.69,0.30502219]
[1740092867024,2.1527018,655.93,655.69,0.30502219]
[1740092867228,2.91257336,655.92,655.69,0.30502219]
[1740092867425,2.91257336,655.91,655.69,0.30502219]
[1740092867629,2.1527018,655.92,655.69,0.30502219]
[1740092867830,2.91214912,655.91,655.69,0.30502219]
[1740092868128,2.1527018,655.92,655.69,0.30502219]
[1740092869021,2.1527018,655.91,655.69,0.30502219]
[1740092870423,2.1527018,655.9,655.69,0.30502219]
[1740092871630,2.1527018,655.89,655.69,0.30502219]
[1740092873424,2.1527018,655.88,655.69,0.30502219]
[1740092875030,2.1527018,655.87,655.69,0.30502219]
[1740092877533,2.1527018,655.86,655.69,0.30502219]
[1740092879226,10.648,656.36,655.69,0.30502219]
[1740092879430,2.91073537,656.35,655.69,0.30502219]
[1740092879627,2.91073537,656.34,655.69,0.30502219]
[1740092879830,2.91073537,656.33,655.69,0.30502219]
[1740092880028,2.14725617,656.35,655.69,0.30502219]
[1740092880029,2.91073537,656.32,655.69,0.30502219]
[1740092880233,2.91073537,656.31,655.69,0.30502219]
[1740092880435,2.91073537,656.3,655.69,0.30502219]
[1740092880632,2.91073537,656.29,655.69,0.30502219]
[1740092880835,2.91073537,656.28,655.69,0.30502219]
[1740092881133,2.91073537,656.27,655.69,0.30502219]
[1740092881335,2.91073537,656.26,655.69,0.30502219]
[1740092881531,2.91073537,656.25,655.69,0.30502219]
[1740092881731,2.91073537,656.24,655.69,0.30502219]
[1740092881937,2.91073537,656.23,655.69,0.30502219]
[1740092882137,2.91073537,656.22,655.69,0.30502219]
[1740092882338,2.91073537,656.21,655.69,0.30502219]
[1740092882537,2.91073537,656.2,655.69,0.30502219]
[1740092882739,2.14725617,656.23,655.69,0.30502219]
[1740092882938,2.91134632,656.22,655.69,0.30502219]
[1740092883136,2.91134632,656.21,655.69,0.30502219]
[1740092883334,2.91134632,656.2,655.69,0.30502219]
[1740092883532,2.14725617,656.23,655.69,0.30502219]
[1740092883734,2.91191158,656.22,655.69,0.30502219]
[1740092883933,2.91191158,656.21,655.69,0.30502219]
[1740092884138,2.14725617,656.23,655.69,0.30502219]
[1740092884337,2.91192342,656.22,655.69,0.30502219]
[1740092884541,2.91192342,656.21,655.69,0.30502219]
[1740092884735,5.05917959,656.2,655.69,0.30502219]
[1740092884942,2.91192342,656.19,655.69,0.30502219]
[1740092885136,2.14725617,656.2,655.69,0.30502219]
[1740092885341,2.91252339,656.19,655.69,0.30502219]
[1740092885541,2.91252339,656.18,655.69,0.30502219]
[1740092885840,2.14725617,656.2,655.69,0.30502219]
[1740092886041,2.9130499,656.19,655.69,0.30502219]
[1740092886239,2.14725617,656.2,655.69,0.30502219]
[1740092886437,2.91367307,656.19,655.69,0.30502219]
[1740092886636,2.14725617,656.2,655.69,0.30502219]
[1740092886637,5.06092924,656.18,655.69,0.30502219]
[1740092886841,2.91367307,656.17,655.69,0.30502219]
[1740092887041,2.91367307,656.16,655.69,0.30502219]
[1740092887242,2.14725617,656.18,655.69,0.30502219]
[1740092887444,2.91422351,656.17,655.69,0.30502219]
[1740092887644,2.91434127,656.16,655.69,0.30502219]
[1740092887844,2.14725617,656.18,655.69,0.30502219]
[1740092888045,2.91432389,656.17,655.69,0.30502219]
[1740092888245,2.91432389,656.16,655.69,0.30502219]
[1740092888445,2.14725617,656.18,655.69,0.30502219]
[1740092888446,2.91432389,656.15,655.69,0.30502219]
[1740092888746,5.06237459,656.14,655.69,0.30502219]
[1740092888947,2.14725617,656.14,655.69,0.30502219]
[1740092889247,2.91511072,656.13,655.69,0.30502219]
[1740092889445,2.14725617,656.14,655.69,0.30502219]
[1740092889644,2.91584428,656.13,655.69,0.30502219]
[1740092889842,2.91584428,656.12,655.69,0.30502219]
[1740092890141,2.91584428,656.11,655.69,0.30502219]
[1740092890345,2.14725617,656.14,655.69,0.30502219]
[1740092890646,2.14725617,656.11,655.69,0.30502219]
[1740092891344,2.91748277,656.1,655.69,0.30502219]
[1740092891645,2.91748277,656.09,655.69,0.30502219]
[1740092891846,2.91748277,656.08,655.69,0.30502219]
[1740092892040,2.91748277,656.07,655.69,0.30502219]
[1740092892244,2.91748277,656.06,655.69,0.30502219]
[1740092892444,2.91748277,656.05,655.69,0.30502219]
[1740092892639,2.91748277,656.04,655.69,0.30502219]
[1740092892840,2.14725617,656.08,655.69,0.30502219]
[1740092892841,2.91748277,656.03,655.69,0.30502219]
[1740092893042,2.91748277,656.02,655.69,0.30502219]
[1740092893246,2.91748277,656.01,655.69,0.30502219]
[1740092893439,2.91748277,656.0,655.69,0.30502219]
[1740092893645,2.91748277,655.99,655.69,0.30502219]
[1740092893945,2.91748277,655.98,655.69,0.30502219]
[1740092894147,2.91748277,655.97,655.69,0.30502219]
[1740092894343,2.14725617,656.08,655.69,0.30502219]
[1740092894644,2.9185107,656.07,655.69,0.30502219]
[1740092894839,2.9185107,656.06,655.69,0.30502219]
[1740092895042,2.9185107,656.05,655.69,0.30502219]
[1740092895246,2.9185107,656.04,655.69,0.30502219]
[1740092895443,2.14725617,656.06,655.69,0.30502219]
[1740092896951,2.91962311,656.05,655.69,0.30502219]
[1740092897143,2.91962311,656.04,655.69,0.30502219]
[1740092897347,2.14725617,656.05,655.69,0.30502219]
[1740092898750,1.315,656.36,655.69,0.30502219]
[1740092898946,2.91960057,656.35,655.69,0.30502219]
[1740092899149,2.91960057,656.34,655.69,0.30502219]
[1740092899352,2.91960057,656.33,655.69,0.30502219]
[1740092899551,2.91960057,656.32,655.69,0.30502219]
[1740092899853,2.91960057,656.31,655.69,0.30502219]
[1740092900048,2.91960057,656.3,655.69,0.30502219]
[1740092900245,2.91960057,656.29,655.69,0.30502219]
[1740092900448,2.91960057,656.28,655.69,0.30502219]
[1740092900649,2.91960057,656.27,655.69,0.30502219]
[1740092900952,2.91960057,656.26,655.69,0.30502219]
[1740092901145,2.91960057,656.25,655.69,0.30502219]
[1740092901346,2.91960057,656.24,655.69,0.30502219]
[1740092901546,2.91960057,656.23,655.69,0.30502219]
[1740092901749,2.91960057,656.22,655.69,0.30502219]
[1740092901950,2.91960057,656.21,655.69,0.30502219]
[1740092902257,2.15362418,656.24,655.69,0.30502219]
[1740092902258,2.91960057,656.2,655.69,0.30502219]
[1740092902453,2.91960057,656.19,655.69,0.30502219]
[1740092902654,2.91960057,656.18,655.69,0.30502219]
[1740092902853,2.91960057,656.17,655.69,0.30502219]
[1740092903053,2.91960057,656.16,655.69,0.30502219]
[1740092903252,2.91960057,656.15,655.69,0.30502219]
[1740092903454,2.91960057,656.14,655.69,0.30502219]
[1740092903653,2.91960057,656.13,655.69,0.30502219]
[1740092903953,2.91960057,656.12,655.69,0.30502219]
[1740092904154,2.91960057,656.11,655.69,0.30502219]
[1740092904455,2.91960057,656.1,655.69,0.30502219]
[1740092904651,2.91960057,656.09,655.69,0.30502219]
[1740092904850,2.91960057,656.08,655.69,0.30502219]
[1740092905050,2.15362418,656.08,655.69,0.30502219]
[1740092905251,2.92146042,656.07,655.69,0.30502219]
[1740092905453,2.92136999,656.06,655.69,0.30502219]
[1740092905755,2.92137356,656.05,655.69,0.30502219]
[1740092906053,2.92137356,656.04,655.69,0.30502219]
[1740092906253,2.92137356,656.03,655.69,0.30502219]
[1740092906553,2.92137356,656.02,655.69,0.30502219]
[1740092906749,2.92137356,656.01,655.69,0.30502219]
[1740092907053,2.92131473,656.0,655.69,0.30502219]
[1740092907253,2.9213427,655.99,655.69,0.30502219]
[1740092907450,5.469,656.36,655.69,0.30502219]
[1740092907651,2.92141589,656.35,655.69,0.30502219]
[1740092907851,5.07655164,656.34,655.69,0.30502219]
[1740092908151,2.92141589,656.33,655.69,0.30502219]
[1740092908351,2.92141589,656.32,655.69,0.30502219]
[1740092908653,2.92141589,656.31,655.69,0.30502219]
[1740092908854,2.92141589,656.3,655.69,0.30502219]
[1740092909054,2.92141589,656.29,655.69,0.30502219]
[1740092909353,2.92141589,656.28,655.69,0.30502219]
[1740092909554,2.92141589,656.27,655.69,0.30502219]
[1740092909754,2.92141589,656.26,655.69,0.30502219]
[1740092909955,2.92141589,656.25,655.69,0.30502219]
[1740092910154,2.92141589,656.24,655.69,0.30502219]
[1740092910457,2.92141589,656.23,655.69,0.30502219]
[1740092910655,2.92141589,656.22,655.69,0.30502219]
[1740092910855,2.92141589,656.21,655.69,0.30502219]
[1740092911055,2.92141589,656.2,655.69,0.30502219]
[1740092911356,2.92141589,656.19,655.69,0.30502219]
[1740092911653,2.92141589,656.18,655.69,0.30502219]
[1740092911853,2.92141589,656.17,655.69,0.30502219]
[1740092912051,2.92141589,656.16,655.69,0.30502219]
[1740092912250,2.92141589,656.15,655.69,0.30502219]
[1740092912451,2.92141589,656.14,655.69,0.30502219]
[1740092912656,2.92141589,656.13,655.69,0.30502219]
[1740092912852,2.92141589,656.12,655.69,0.30502219]
[1740092913058,2.92141589,656.11,655.69,0.30502219]
[1740092913252,2.92141589,656.1,655.69,0.30502219]
[1740092913456,2.92141589,656.09,655.69,0.30502219]
[1740092913658,2.92141589,656.08,655.69,0.30502219]
[1740092913861,2.92141589,656.07,655.69,0.30502219]
[1740092914060,2.92141589,656.06,655.69,0.30502219]
[1740092914260,2.92141589,656.05,655.69,0.30502219]
[1740092914464,2.92141589,656.04,655.69,0.30502219]
[1740092914761,2.92141589,656.03,655.69,0.30502219]
[1740092914960,2.92141589,656.02,655.69,0.30502219]
[1740092915154,2.92141589,656.01,655.69,0.30502219]
[1740092915357,2.92141589,656.0,655.69,0.30502219]
[1740092915556,2.92141589,655.99,655.69,0.30502219]
[1740092915757,2.92141589,655.98,655.69,0.30502219]
[1740092915961,2.92141589,655.97,655.69,0.30502219]
[1740092916156,2.92141589,655.96,655.69,0.30502219]
[1740092916357,2.15513575,656.03,655.69,0.30502219]
[1740092916555,2.92167976,656.02,655.69,0.30502219]
[1740092916755,2.92167976,656.01,655.69,0.30502219]
[1740092916958,2.92167976,656.0,655.69,0.30502219]
[1740092917155,2.92167976,655.99,655.69,0.30502219]
[1740092917460,2.92167976,655.98,655.69,0.30502219]
[1740092917655,2.92167976,655.97,655.69,0.30502219]
[1740092917860,2.92167976,655.96,655.69,0.30502219]
[1740092918060,2.15532087,655.98,655.69,0.30502219]
[1740092918261,2.92167533,655.97,655.69,0.30502219]
[1740092918556,2.15532087,655.98,655.69,0.30502219]
[1740092919864,6.73,656.36,655.69,0.30502219]
[1740092920162,2.9214941,656.35,655.69,0.30502219]
[1740092920363,2.9214941,656.34,655.69,0.30502219]
[1740092920662,2.9214941,656.33,655.69,0.30502219]
[1740092920864,2.9214941,656.32,655.69,0.30502219]
[1740092921057,2.9214941,656.31,655.69,0.30502219]
[1740092921261,2.9214941,656.3,655.69,0.30502219]
[1740092921459,2.9214941,656.29,655.69,0.30502219]
[1740092921663,2.9214941,656.28,655.69,0.30502219]
[1740092921962,2.9214941,656.27,655.69,0.30502219]
[1740092922164,2.9214941,656.26,655.69,0.30502219]
[1740092922367,2.9214941,656.25,655.69,0.30502219]
[1740092922565,5.07661376,656.24,655.69,0.30502219]
[1740092922766,2.9214941,656.23,655.69,0.30502219]
[1740092922959,2.9214941,656.22,655.69,0.30502219]
[1740092923163,2.9214941,656.21,655.69,0.30502219]
[1740092923364,2.9214941,656.2,655.69,0.30502219]
[1740092923564,2.9214941,656.19,655.69,0.30502219]
[1740092923763,2.9214941,656.18,655.69,0.30502219]
[1740092923966,2.9214941,656.17,655.69,0.30502219]
[1740092924167,2.9214941,656.16,655.69,0.30502219]
[1740092924368,2.9214941,656.15,655.69,0.30502219]
[1740092924667,2.9214941,656.14,655.69,0.30502219]
[1740092924868,2.9214941,656.13,655.69,0.30502219]
[1740092925068,2.9214941,656.12,655.69,0.30502219]
[1740092925268,2.9214941,656.11,655.69,0.30502219]
[1740092925469,2.9214941,656.1,655.69,0.30502219]
[1740092925669,2.9214941,656.09,655.69,0.30502219]
[1740092925864,2.9214941,656.08,655.69,0.30502219]
[1740092926169,8.311,656.36,655.69,0.30502219]
[1740092926170,5.07661376,656.07,655.69,0.30502219]
[1740092926465,2.9214941,656.06,655.69,0.30502219]
[1740092926769,2.15511966,656.07,655.69,0.30502219]
[1740092928164,2.15511966,656.06,655.69,0.30502219]
[1740092929870,2.15511966,656.05,655.69,0.30502219]
[1740092930571,2.92302344,656.04,655.69,0.30502219]
[1740092930772,2.92302344,656.03,655.69,0.30502219]
[1740092930973,2.92302344,656.02,655.69,0.30502219]
[1740092931166,2.92302344,656.01,655.69,0.30502219]
[1740092931366,5.0781431,656.0,655.69,0.30502219]
[1740092931569,2.92302344,655.99,655.69,0.30502219]
[1740092931771,2.15511966,656.0,655.69,0.30502219]
[1740092933270,8.311,656.36,655.69,0.30502219]
[1740092933475,2.92393458,656.35,655.69,0.30502219]
[1740092933670,2.92393458,656.34,655.69,0.30502219]
[1740092933870,2.92393458,656.33,655.69,0.30502219]
[1740092934074,2.92393458,656.32,655.69,0.30502219]
[1740092934275,2.92393458,656.31,655.69,0.30502219]
[1740092934476,2.92393458,656.3,655.69,0.30502219]
[1740092934772,2.92393458,656.29,655.69,0.30502219]
[1740092934977,2.92393458,656.28,655.69,0.30502219]
[1740092935178,2.92393458,656.27,655.69,0.30502219]
[1740092935378,2.92393458,656.26,655.69,0.30502219]
[1740092935583,2.92393458,656.25,655.69,0.30502219]
[1740092935777,2.92393458,656.24,655.69,0.30502219]
[1740092935975,2.92393458,656.23,655.69,0.30502219]
[1740092936178,2.92393458,656.22,655.69,0.30502219]
[1740092936378,2.92393458,656.21,655.69,0.30502219]
[1740092936580,2.92393458,656.2,655.69,0.30502219]
[1740092936781,2.92393458,656.19,655.69,0.30502219]
[1740092936977,2.92393458,656.18,655.69,0.30502219]
[1740092937176,2.15695859,656.21,655.69,0.30502219]
[1740092937177,2.92393458,656.17,655.69,0.30502219]
[1740092937383,2.92393458,656.16,655.69,0.30502219]
[1740092937582,2.92393458,656.15,655.69,0.30502219]
[1740092937782,2.92393458,656.14,655.69,0.30502219]
[1740092937983,2.92393458,656.13,655.69,0.30502219]
[1740092938183,2.92393458,656.12,655.69,0.30502219]
[1740092938488,2.92393458,656.11,655.69,0.30502219]
[1740092938782,2.92393458,656.1,655.69,0.30502219]
[1740092938983,2.92393458,656.09,655.69,0.30502219]
[1740092939186,2.92393458,656.08,655.69,0.30502219]
[1740092939486,2.92393458,656.07,655.69,0.30502219]
[1740092939784,2.92393458,656.06,655.69,0.30502219]
[1740092939984,2.92393458,656.05,655.69,0.30502219]
[1740092940185,2.92393458,656.04,655.69,0.30502219]
[1740092940385,2.92393458,656.03,655.69,0.30502219]
[1740092940585,2.92393458,656.02,655.69,0.30502219]
[1740092940785,2.92393458,656.01,655.69,0.30502219]
[1740092941086,2.92393458,656.0,655.69,0.30502219]
[1740092941286,2.92393458,655.99,655.69,0.30502219]
[1740092941486,2.92393458,655.98,655.69,0.30502219]
[1740092941686,2.92393458,655.97,655.69,0.30502219]
[1740092941989,2.92393458,655.96,655.69,0.30502219]
[1740092942184,5.08089317,655.95,655.08,1.13152148]
[1740092942488,2.92393458,655.94,655.61,1.590742]
[1740092942690,2.92393458,655.93,655.1,0.3052969]
[1740092942889,2.92393458,655.92,655.61,1.59072383]
[1740092943088,2.92393458,655.91,655.61,1.59072383]
[1740092943286,2.92393458,655.9,655.1,0.3052969]
[1740092943490,2.92393458,655.89,655.1,0.3052969]
[1740092943691,2.92393458,655.88,655.1,0.3052969]
[1740092943889,2.92393458,655.87,655.1,0.3052969]
[1740092944090,2.92393458,655.86,655.1,0.3052969]
[1740092944291,2.92393458,655.85,655.1,0.3052969]
[1740092944586,2.92393458,655.84,655.11,1.59116022]
[1740092944790,2.92393458,655.83,655.12,0.30528758]
[1740092945086,2.92393458,655.82,655.12,0.30528758]
[1740092945291,2.92393458,655.81,655.12,0.30528758]
[1740092945590,2.92393458,655.8,655.12,0.30528758]
[1740092945790,2.92393458,655.79,655.12,0.30528758]
[1740092945986,2.15695859,655.8,655.12,0.30528758]
[1740092946490,2.92168963,655.79,655.12,0.30528758]
[1740092946688,2.15695859,655.8,655.12,0.30528758]
[1740092947685,2.15695859,655.79,655.12,0.30528758]
[1740092949090,1.684,655.92,655.12,0.30528758]
[1740092949286,2.9207703,655.91,655.12,0.30528758]
[1740092949487,2.9207703,655.9,655.12,0.30528758]
[1740092949688,2.9207703,655.89,655.12,0.30528758]
[1740092949890,2.9207703,655.88,655.12,0.30528758]
[1740092950088,2.15446534,655.9,655.12,0.30528758]
[1740092951892,2.15446534,655.89,655.12,0.30528758]
[1740092952193,2.91984998,655.88,655.12,0.30528758]
[1740092952493,2.15446534,655.89,655.12,0.30528758]
[1740092952687,2.91970736,655.88,655.12,0.30528758]
[1740092952891,2.15446534,655.89,655.12,0.30528758]
[1740092953092,2.9197109,655.88,655.12,0.30528758]
[1740092953292,5.07417624,655.87,655.12,0.30528758]
[1740092953493,2.9197109,655.86,655.12,0.30528758]
[1740092953795,2.9197109,655.85,655.12,0.30528758]
[1740092953992,2.9197109,655.84,655.12,0.30528758]
[1740092954193,2.15446534,655.87,655.12,0.30528758]
[1740092954493,2.91954428,655.86,655.12,0.30528758]
[1740092954793,2.15446534,655.87,655.12,0.30528758]
[1740092954994,2.91941849,655.86,655.12,0.30528758]
[1740092955200,5.07388383,655.85,655.12,0.30528758]
[1740092955394,2.15446534,655.85,655.12,0.30528758]
[1740092956693,5.07355769,655.84,655.12,0.30528758]
[1740092956889,2.15446534,655.84,655.12,0.30528758]
[1740092957286,2.91910335,655.83,655.12,0.30528758]
[1740092957492,2.15446534,655.84,655.12,0.30528758]
[1740092957891,1.684,655.92,655.12,0.30528758]
[1740092958095,2.91901206,655.91,655.12,0.30528758]
[1740092958295,2.91901206,655.9,655.12,0.30528758]
[1740092958495,2.91901206,655.89,655.12,0.30528758]
[1740092958688,2.91901206,655.88,655.12,0.30528758]
[1740092958891,2.91901206,655.87,655.12,0.30528758]
[1740092959096,2.91901206,655.86,655.12,0.30528758]
[1740092959296,2.91901206,655.85,655.12,0.30528758]
[1740092959596,2.15359542,655.89,655.12,0.30528758]
[1740092959793,2.9193238,655.88,655.12,0.30528758]
[1740092959997,2.9193238,655.87,655.12,0.30528758]
[1740092960201,2.9193238,655.86,655.12,0.30528758]
[1740092960397,2.9193238,655.85,655.12,0.30528758]
[1740092960591,2.9193238,655.84,655.12,0.30528758]
[1740092960795,2.15359542,655.84,655.12,0.30528758]
[1740092961998,2.15359542,655.84,655.16,1.13152148]
[1740092962198,2.15359542,655.84,655.17,0.30526428]
[1740092962393,1.723,655.97,655.17,0.30526428]
[1740092962598,2.91941608,655.96,655.17,0.30526428]
[1740092962797,2.91941608,655.95,655.17,0.30526428]
[1740092962997,2.91941608,655.94,655.17,0.30526428]
[1740092963193,2.91941608,655.93,655.17,0.30526428]
[1740092963393,2.91941608,655.92,655.17,0.30526428]
[1740092963593,2.91941608,655.91,655.17,0.30526428]
[1740092963793,2.91941608,655.9,655.17,0.30526428]
[1740092963994,2.91941608,655.89,655.17,0.30526428]
[1740092964194,2.91941608,655.88,655.17,0.30526428]
[1740092964402,2.15375784,655.95,655.17,0.30526428]
[1740092964895,2.91961139,655.94,655.17,0.30526428]
[1740092965101,2.15375784,655.95,655.17,0.30526428]
[1740092965498,2.15375784,655.93,655.17,0.30526428]
[1740092967301,2.15375784,655.92,655.17,0.30526428]
[1740092969203,4.00375784,655.91,655.17,0.30526428]
[1740092970405,2.15375784,655.9,655.17,0.30526428]
[1740092971607,2.91867261,655.89,655.17,0.30526428]
[1740092971807,2.91867261,655.88,655.17,0.30526428]
[1740092972007,2.91867261,655.87,655.17,0.30526428]
[1740092972205,2.15375784,655.9,655.17,0.30526428]
[1740092972405,2.91887343,655.89,655.17,0.30526428]
[1740092972602,2.15375784,655.86,655.17,0.30526428]
[1740092974410,2.15375784,655.85,655.17,0.30526428]
[1740092976113,2.15375784,655.84,655.17,0.30526428]
[1740092976811,2.91733141,655.83,655.17,0.30526428]
[1740092977012,2.91733141,655.82,655.17,0.30526428]
[1740092977213,2.91733141,655.81,655.17,0.30526428]
[1740092977413,2.91733141,655.8,655.17,0.30526428]
[1740092977613,2.91733141,655.79,655.17,0.30526428]
[1740092977814,2.91733141,655.78,655.17,0.30526428]
[1740092978013,2.15375784,655.84,655.17,0.30526428]
[1740092978215,5.0708947,655.83,655.17,0.30526428]
[1740092978415,2.91713686,655.82,655.17,0.30526428]
[1740092978615,2.15375784,655.83,655.17,0.30526428]
[1740092978815,2.91698066,655.82,655.17,0.30526428]
[1740092979018,2.15375784,655.83,655.17,0.30526428]
[1740092979217,2.9169813,655.82,655.17,0.30526428]
[1740092979420,2.15375784,655.83,655.17,0.30526428]
[1740092980014,5.07066316,655.82,655.17,0.30526428]
[1740092980218,2.15375784,655.82,655.17,0.30526428]
[1740092981116,2.15375784,655.81,655.17,0.30526428]
[1740092981314,2.91689844,655.8,655.17,0.30526428]
[1740092981518,2.91689844,655.79,655.17,0.30526428]
[1740092981713,2.91703439,655.78,655.17,0.30526428]
[1740092981914,2.91703439,655.77,655.17,0.30526428]
[1740092982116,2.91703439,655.76,655.17,0.30526428]
[1740092982315,2.91703439,655.75,655.17,0.30526428]
[1740092982516,2.91703439,655.74,655.17,0.30526428]
[1740092982714,2.91703439,655.73,655.17,0.30526428]
[1740092982920,2.91703439,655.72,655.17,0.30526428]
[1740092983219,2.15375784,655.73,655.17,0.30526428]
[1740092983423,2.9172093,655.72,655.17,0.30526428]
[1740092983614,2.9172093,655.71,655.17,0.30526428]
[1740092983814,2.15375784,655.73,655.17,0.30526428]